fUST/lending_fUST_20250211
["ID","MTS","AMOUNT","RATE_DAILY","PERIOD"]
[352722147,1739275846560,-751.68,0.00010958,2]
[352722148,1739275846570,-500.0,0.00010958,2]
[352722149,1739275846579,-500.0,0.00010958,2]
[352722150,1739275846589,-500.0,0.00010958,2]
[352722151,1739275846598,-2381.78,0.00010958,2]
[352722152,1739275846607,-2147.89280809,0.00010958,2]
[352722153,1739275846621,-1279.8999999,0.00010958,2]
[352722216,1739276845309,-173598.03558976,0.00017152,61]
[352722217,1739276845337,-879077.73576817,0.00017152,61]
[352722218,1739276845363,-987.0088731,0.00017152,120]
[352722219,1739276845397,-411140.75892439,0.00017152,61]
[352722220,1739276845423,-673.9615249,0.00017152,120]
[352722221,1739276845449,-318.7820038,0.00017152,120]
[352722222,1739276845476,-417.67756675,0.00017152,120]
[352722223,1739276845504,-394573.13499585,0.00017152,61]
[352722224,1739276845537,-406904.77011386,0.00017152,61]
[352722225,1739276845566,-2732308.13463942,0.00017152,61]
[352722226,1739276853989,-90826.31010859,0.00017152,61]
[352722227,1739276854019,-4646021.33082389,0.00017152,61]
[352722228,1739276854049,-263152.35906752,0.00017152,61]
[352722322,1739277035813,-486.2668845,0.00010102,2]
[352722352,1739277038023,-1813.7331155,0.00010102,2]
[352722353,1739277038033,-300.0,0.00010635,2]
[352722354,1739277038043,-2294.0,0.00010636,2]
[352722355,1739277038052,-150.0,0.00010636,2]
[352722356,1739277038061,-400.0,0.00010685,2]
[352722357,1739277038072,-500.0,0.00010958,2]
[352722358,1739277038081,-331.98961056,0.00010958,2]
[352722359,1739277038090,-500.0,0.00010958,2]
[352722360,1739277038099,-578.78312572,0.00010958,2]
[352722361,1739277038108,-500.0,0.00010958,2]
[352722362,1739277038118,-500.0,0.00010958,2]
[352722363,1739277038127,-508.03923707,0.00010958,2]
[352722364,1739277038136,-500.0,0.00010958,2]
[352722365,1739277038146,-500.0,0.00010958,2]
[352722366,1739277038155,-500.0,0.00010958,2]
[352722367,1739277038164,-500.0,0.00010958,2]
[352722368,1739277038173,-500.0,0.00010958,2]
[352722369,1739277038182,-500.0,0.00010958,2]
[352722370,1739277038191,-500.0,0.00010958,2]
[352722371,1739277038202,-500.0,0.00010958,2]
[352722372,1739277038212,-500.0,0.00010958,2]
[352722373,1739277038221,-500.0,0.00010958,2]
[352722374,1739277038230,-628.58791543,0.00010958,2]
[352722375,1739277038240,-500.0,0.00010958,2]
[352722376,1739277038249,-637.9,0.00010958,2]
[352722377,1739277038258,-500.0,0.00010958,2]
[352722378,1739277038268,-500.0,0.00010958,2]
[352722379,1739277038277,-500.0,0.00010958,2]
[352722380,1739277038287,-500.0,0.00010958,2]
[352722381,1739277038296,-500.0,0.00010958,2]
[352722382,1739277038305,-514.38698282,0.00010958,2]
[352722383,1739277038314,-500.0,0.00010958,2]
[352722384,1739277038324,-500.0,0.00010958,2]
[352722385,1739277038332,-500.0,0.00010958,2]
[352722386,1739277038342,-155.15732835,0.00010958,2]
[352722387,1739277038351,-500.0,0.00010958,2]
[352722388,1739277038360,-500.0,0.00010958,2]
[352722389,1739277038369,-500.0,0.00010958,2]
[352722390,1739277038378,-500.0,0.00010958,2]
[352722391,1739277038388,-617.58089285,0.00010958,2]
[352722392,1739277038397,-500.0,0.00010958,2]
[352722393,1739277038406,-500.0,0.00010958,2]
[352722394,1739277038416,-538.2,0.00010958,2]
[352722395,1739277038426,-500.0,0.00010958,2]
[352722396,1739277038435,-502.87067338,0.00010958,2]
[352722397,1739277038444,-500.0,0.00010958,2]
[352722398,1739277038454,-500.0,0.00010958,2]
[352722399,1739277038463,-500.0,0.00010958,2]
[352722400,1739277038472,-500.0,0.00010958,2]
[352722401,1739277038481,-500.0,0.00010958,2]
[352722402,1739277038490,-668.64,0.00010958,2]
[352722403,1739277038499,-506.69137151,0.00010958,2]
[352722404,1739277038509,-500.0,0.00010958,2]
[352722405,1739277038518,-500.0,0.00010958,2]
[352722406,1739277038527,-500.0,0.00010958,2]
[352722407,1739277038536,-889.34,0.00010958,2]
[352722408,1739277038546,-667.22,0.00010958,2]
[352722409,1739277038555,-500.0,0.00010958,2]
[352722410,1739277038564,-500.0,0.00010958,2]
[352722411,1739277038573,-500.0,0.00010958,2]
[352722412,1739277038583,-500.0,0.00010958,2]
[352722413,1739277038592,-500.0,0.00010958,2]
[352722414,1739277038605,-1084.43,0.00010958,2]
[352722415,1739277038615,-500.0,0.00010958,2]
[352722416,1739277038624,-1101.44,0.00010958,2]
[352722417,1739277038634,-500.0,0.00010958,2]
[352722418,1739277038644,-199.77044068,0.00010958,2]
[352722419,1739277038653,-500.0,0.00010958,2]
[352722420,1739277038662,-418.57534078,0.00010958,2]
[352722421,1739277038672,-500.0,0.00010958,2]
[352722422,1739277038681,-589.15,0.00010958,2]
[352722423,1739277038691,-500.0,0.00010958,2]
[352722424,1739277038701,-500.0,0.00010958,2]
[352722425,1739277038711,-505.48644713,0.00010958,2]
[352722426,1739277038721,-500.0,0.00010958,2]
[352722427,1739277038729,-500.0,0.00010958,2]
[352722428,1739277038738,-500.0,0.00010958,2]
[352722429,1739277038747,-500.0,0.00010958,2]
[352722430,1739277038756,-500.0,0.00010958,2]
[352722431,1739277038766,-500.0,0.00010958,2]
[352722432,1739277038775,-500.0,0.00010958,2]
[352722433,1739277038784,-500.0,0.00010958,2]
[352722434,1739277038793,-555.97,0.00010958,2]
[352722435,1739277038802,-500.0,0.00010958,2]
[352722436,1739277038811,-500.0,0.00010958,2]
[352722437,1739277038820,-549.52,0.00010958,2]
[352722438,1739277038829,-923.41,0.00010958,2]
[352722439,1739277038838,-1140.97,0.00010958,2]
[352722440,1739277038847,-500.0,0.00010958,2]
[352722441,1739277038857,-500.0,0.00010958,2]
[352722442,1739277038866,-500.0,0.00010958,2]
[352722443,1739277038875,-500.0,0.00010958,2]
[352722444,1739277038884,-522.48,0.00010958,2]
[352722445,1739277038893,-727.05,0.00010958,2]
[352722446,1739277038902,-314.42286575,0.00010958,2]
[352722447,1739277038912,-500.0,0.00010958,2]
[352722448,1739277038921,-500.0,0.00010958,2]
[352722449,1739277038931,-533.08,0.00010958,2]
[352722450,1739277038940,-696.34,0.00010958,2]
[352722451,1739277038951,-1220.57,0.00010958,2]
[352722452,1739277038961,-589.96,0.00010958,2]
[352722453,1739277038970,-500.0,0.00010958,2]
[352722454,1739277038980,-500.0,0.00010958,2]
[352722455,1739277038989,-500.0,0.00010958,2]
[352722456,1739277038998,-648.63,0.00010958,2]
[352722457,1739277039007,-500.0,0.00010958,2]
[352722458,1739277039016,-500.0,0.00010958,2]
[352722459,1739277039026,-500.0,0.00010958,2]
[352722460,1739277039035,-500.0,0.00010958,2]
[352722461,1739277039044,-500.0,0.00010958,2]
[352722462,1739277039058,-500.0,0.00010958,2]
[352722463,1739277039068,-500.0,0.00010958,2]
[352722464,1739277039077,-704.73,0.00010958,2]
[352722465,1739277039086,-500.0,0.00010958,2]
[352722466,1739277039095,-500.0,0.00010958,2]
[352722467,1739277039104,-2304.14,0.00010958,2]
[352722468,1739277039113,-500.0,0.00010958,2]
[352722469,1739277039123,-500.0,0.00010958,2]
[352722470,1739277039132,-403.70856205,0.00010958,2]
[352722471,1739277039141,-466.87332402,0.00010958,2]
[352722472,1739277039150,-500.0,0.00010958,2]
[352722473,1739277039159,-1643.47,0.00010958,2]
[352722474,1739277039168,-878.94,0.00010958,2]
[352722475,1739277039177,-500.0,0.00010958,2]
[352722476,1739277039186,-720.36,0.00010958,2]
[352722477,1739277039196,-500.0,0.00010958,2]
[352722478,1739277039205,-739.2,0.00010958,2]
[352722479,1739277039214,-2282.54,0.00010958,2]
[352722480,1739277039223,-795.77,0.00010958,2]
[352722481,1739277039232,-359.84696232,0.00010958,2]
[352722482,1739277039241,-500.0,0.00010958,2]
[352722483,1739277039250,-500.0,0.00010958,2]
[352722484,1739277039259,-4547.77,0.00010958,2]
[352722485,1739277039268,-500.0,0.00010958,2]
[352722486,1739277039277,-500.0,0.00010958,2]
[352722487,1739277039286,-500.0,0.00010958,2]
[352722488,1739277039295,-500.0,0.00010958,2]
[352722489,1739277039304,-4380.88,0.00010958,2]
[352722490,1739277039313,-264.18186688,0.00010958,2]
[352722491,1739277039323,-500.0,0.00010958,2]
[352722492,1739277039332,-500.0,0.00010958,2]
[352722493,1739277039341,-945.04,0.00010958,2]
[352722494,1739277039350,-9807.92,0.00010958,2]
[352722495,1739277039359,-923.72,0.00010958,2]
[352722496,1739277039369,-613.49,0.00010958,2]
[352722497,1739277039378,-500.0,0.00010958,2]
[352722498,1739277039388,-500.0,0.00010958,2]
[352722499,1739277039397,-500.0,0.00010958,2]
[352722500,1739277039406,-500.0,0.00010958,2]
[352722501,1739277039415,-33477.57,0.00010958,2]
[352722502,1739277039424,-883.15,0.00010958,2]
[352722503,1739277039433,-350.9307384,0.00010958,2]
[352722504,1739277039441,-2396.6,0.00010958,2]
[352722505,1739277039452,-15152.75,0.00010958,2]
[352722506,1739277039461,-462.55768508,0.00010958,2]
[352722507,1739277039470,-500.0,0.00010958,2]
[352722508,1739277039479,-655.33,0.00010958,2]
[352722509,1739277039488,-500.0,0.00010958,2]
[352722510,1739277039497,-3120.43,0.00010958,2]
[352722511,1739277039507,-1770.73,0.00010958,2]
[352722512,1739277039516,-500.0,0.00010958,2]
[352722513,1739277039526,-636.66350288,0.00010958,2]
[352722514,1739277039540,-1000.0,0.00010958,2]
[352722515,1739277039552,-15.61649712,0.00010958,2]
[352722516,1739277039561,-571.46150288,0.00010958,2]
[352722878,1739277043386,-396.0,0.00010636,2]
[352722880,1739277043396,-514.19849712,0.00010958,2]
[352722882,1739277043406,-233.99691685,0.00010958,2]
[352722887,1739277043448,-1810.47308315,0.00010958,2]
[352722889,1739277043458,-500.0,0.00010958,2]
[352722891,1739277043468,-500.0,0.00010958,2]
[352722893,1739277043477,-1259.98,0.00010958,2]
[352722895,1739277043487,-500.0,0.00010958,2]
[352722897,1739277043497,-805.57,0.00010958,2]
[352722899,1739277043506,-500.0,0.00010958,2]
[352722901,1739277043516,-500.0,0.00010958,2]
[352722903,1739277043526,-500.0,0.00010958,2]
[352722905,1739277043536,-500.0,0.00010958,2]
[352722907,1739277043545,-500.0,0.00010958,2]
[352722909,1739277043554,-666.02,0.00010958,2]
[352722912,1739277043564,-858.12,0.00010958,2]
[352722917,1739277043573,-500.0,0.00010958,2]
[352722921,1739277043583,-354.62386432,0.00010958,2]
[352722924,1739277043596,-306.23613568,0.00010958,2]
[352722925,1739277043606,-152.73282982,0.00010958,2]
[352723170,1739277046173,-347.26717018,0.00010958,2]
[352723172,1739277046182,-624.25,0.00010958,2]
[352723174,1739277046193,-500.0,0.00010958,2]
[352723177,1739277046204,-500.0,0.00010958,2]
[352723178,1739277046214,-1203.94,0.00010958,2]
[352723181,1739277046224,-613.4793298,0.00010958,2]
[352723183,1739277046289,-411.2974901,0.00010958,2]
[352723298,1739278232629,-3071.18524705,9.005e-05,2]
[352723352,1739278238161,-1847.30529547,9.005e-05,2]
[352723367,1739278238380,-81.50945748,9.005e-05,2]
[352723368,1739278238389,-2614.02992762,9.096e-05,2]
[352723566,1739278240438,-2385.97007238,9.096e-05,2]
[352723568,1739278240448,-300.0,9.279e-05,2]
[352723570,1739278240457,-2676.2064912,9.281e-05,2]
[352723572,1739278240466,-21208.6570305,9.779e-05,2]
[352723882,1739278243486,-3691.3429695,9.779e-05,2]
[352723884,1739278243496,-3222.09168239,9.89e-05,2]
[352724209,1739278246395,-1151.0,9.681e-05,2]
[352724216,1739278246453,-3849.0,9.681e-05,2]
[352724218,1739278246463,-2016.05239013,9.89e-05,2]
[352724220,1739278246475,-77.46244578,9.89e-05,2]
[352724222,1739278246484,-250.0,9.89e-05,2]
[352724224,1739278246494,-420.0,0.00010207,2]
[352724226,1739278246503,-2705.58420129,0.00010523,2]
[352724228,1739278246515,-976.9,0.00010523,2]
[352724248,1739278246695,-2414.825,0.00010523,2]
[352725574,1739278387484,500.0,0.00016,120]
[352725575,1739278403079,500.0,0.00016,120]
[352725584,1739279193465,5000.0,8.399e-05,2]
[352725585,1739279201673,5000.0,8.399e-05,2]
[352725586,1739279393246,3386.27725176,8.396e-05,2]
[352725587,1739279393279,1613.72274824,8.396e-05,2]
[352725588,1739279416393,5000.0,8.396e-05,2]
[352725636,1739279432906,-1512.28164741,8.57e-05,2]
[352725637,1739279432916,-300.0,8.657e-05,2]
[352725638,1739279432925,-3659.93189393,8.658e-05,2]
[352725639,1739279433031,-21240.06810607,8.658e-05,2]
[352725640,1739279433042,-184.2485605,9.058e-05,2]
[352725641,1739279433052,-420.0,9.523e-05,2]
[352725642,1739279433062,-344.5171606,9.766e-05,2]
[352725643,1739279433072,-354.876058,9.77e-05,2]
[352725644,1739279433082,-162.5,9.778e-05,2]
[352725645,1739279433092,-354.876058,9.78e-05,2]
[352725646,1739279433102,-153.0,9.78e-05,2]
[352725648,1739279433112,-153.0,9.78e-05,2]
[352725650,1739279433122,-32628.4002829,9.866e-05,2]
[352725652,1739279433132,-153.0,9.87e-05,2]
[352725654,1739279433142,-153.0,9.878e-05,2]
[352725656,1739279433152,-306.0,9.878e-05,2]
[352725658,1739279433162,-153.0,9.878e-05,2]
[352725660,1739279433172,-354.876058,9.941e-05,2]
[352725662,1739279433182,-354.876058,9.95e-05,2]
[352725664,1739279433192,-153.0,9.95e-05,2]
[352725666,1739279433201,-153.0,9.95e-05,2]
[352725668,1739279433214,-354.876058,9.95e-05,2]
[352725670,1739279433224,-153.0,9.95e-05,2]
[352725672,1739279433234,-353.7289316,9.95e-05,2]
[352725674,1739279433244,-153.0,9.95e-05,2]
[352725676,1739279433254,-7438.69753278,0.0001,2]
[352725678,1739279433264,-354.876058,0.0001,2]
[352725680,1739279433274,-153.0,0.0001,2]
[352725682,1739279433283,-153.0,0.0001,2]
[352725684,1739279433293,-153.0,0.0001,2]
[352725686,1739279433302,-153.0,0.0001,2]
[352725688,1739279433312,-3.2084972,0.0001,2]
[352725731,1739279438391,-351.6675608,0.0001,2]
[352725733,1739279438407,-153.0,0.00010078,2]
[352725735,1739279438417,-153.0,0.00010078,2]
[352725738,1739279438429,-153.0,0.00010078,2]
[352725740,1739279438440,-153.0,0.00010078,2]
[352725742,1739279438450,-153.0,0.00010152,2]
[352725744,1739279438462,-306.0,0.00010152,2]
[352725746,1739279438473,-153.0,0.00010178,2]
[352725748,1739279438483,-396.0,0.00010426,2]
[352725750,1739279438493,-587.0,0.00010475,2]
[352725753,1739279438506,-150.0,0.00010636,2]
[352725755,1739279438517,-1970.0,0.00010636,2]
[352725757,1739279438528,-538.0,0.00010636,2]
[352725759,1739279438538,-2295.0,0.00010636,2]
[352725760,1739279438549,-400.0,0.00010685,2]
[352725761,1739279438559,-9317.95139268,0.000108,2]
[352725762,1739279438570,-498.1202906,0.00010848,2]
[352725763,1739279438580,-155.859348,0.00010849,2]
[352725764,1739279438591,-500.0,0.00010853,2]
[352725765,1739279438603,-329.91056156,0.00010853,2]
[352725766,1739279438613,-500.0,0.00010853,2]
[352725767,1739279438624,-500.0,0.00010853,2]
[352725768,1739279438634,-500.0,0.00010853,2]
[352725769,1739279438645,-500.0,0.00010853,2]
[352725770,1739279438656,-500.0,0.00010853,2]
[352725771,1739279438667,-500.0,0.00010853,2]
[352725772,1739279438677,-256.43,0.00010853,2]
[352725773,1739279438688,-427.74113183,0.00010853,2]
[352725775,1739279438699,-172.93275021,0.00010853,2]
[352725777,1739279438710,-500.0,0.00010853,2]
[352725779,1739279438721,-500.0,0.00010853,2]
[352725780,1739279438732,-500.0,0.00010853,2]
[352725782,1739279438743,-500.0,0.00010853,2]
[352725784,1739279438753,-500.0,0.00010853,2]
[352725786,1739279438764,-500.0,0.00010853,2]
[352725789,1739279438775,-307.29045461,0.00010853,2]
[352725791,1739279438784,-500.0,0.00010853,2]
[352725793,1739279438793,-500.0,0.00010853,2]
[352725795,1739279438802,-500.0,0.00010853,2]
[352725797,1739279438811,-500.0,0.00010853,2]
[352725799,1739279438820,-500.0,0.00010853,2]
[352725801,1739279438830,-500.0,0.00010853,2]
[352725803,1739279438839,-500.0,0.00010853,2]
[352725805,1739279438848,-500.0,0.00010853,2]
[352725807,1739279438857,-500.0,0.00010853,2]
[352725830,1739279439071,-500.0,0.00010853,2]
[352725833,1739279439089,-4274.75519599,0.00010858,2]
[352725835,1739279439103,-707.0,0.000109,3]
[352725837,1739279439112,-4274.75519598,0.00010927,2]
[352725839,1739279439121,-1256.73228311,0.00010957,2]
[352725841,1739279439131,-13031.41316134,0.00010957,2]
[352725843,1739279439140,-500.0,0.00010958,2]
[352725845,1739279439149,-500.0,0.00010958,2]
[352725847,1739279439159,-500.0,0.00010958,2]
[352725849,1739279439168,-500.49235233,0.00010958,2]
[352725851,1739279439179,-510.09955232,0.00010958,2]
[352725853,1739279439189,-500.0,0.00010958,2]
[352725855,1739279439198,-500.0,0.00010958,2]
[352725857,1739279439208,-500.0,0.00010958,2]
[352725859,1739279439220,-500.0,0.00010958,2]
[352725861,1739279439230,-500.0,0.00010958,2]
[352725863,1739279439239,-500.0,0.00010958,2]
[352725865,1739279439248,-222.99573887,0.00010958,2]
[352725867,1739279439258,-500.0,0.00010958,2]
[352725869,1739279439268,-500.0,0.00010958,2]
[352725871,1739279439277,-500.0,0.00010958,2]
[352725873,1739279439287,-500.0,0.00010958,2]
[352725875,1739279439297,-500.0,0.00010958,2]
[352725877,1739279439306,-621.27753844,0.00010958,2]
[352725879,1739279439315,-500.0,0.00010958,2]
[352725881,1739279439324,-500.0,0.00010958,2]
[352725883,1739279439333,-500.0,0.00010958,2]
[352725885,1739279439342,-500.0,0.00010958,2]
[352725887,1739279439352,-500.0,0.00010958,2]
[352725889,1739279439361,-500.23075941,0.00010958,2]
[352725891,1739279439371,-500.0,0.00010958,2]
[352725893,1739279439380,-500.0,0.00010958,2]
[352725895,1739279439389,-500.0,0.00010958,2]
[352725897,1739279439403,-500.0,0.00010958,2]
[352725899,1739279439412,-509.03641315,0.00010958,2]
[352725901,1739279439421,-500.0,0.00010958,2]
[352725903,1739279439431,-500.0,0.00010958,2]
[352725905,1739279439442,-500.0,0.00010958,2]
[352725907,1739279439451,-515.78,0.00010958,2]
[352725909,1739279439461,-500.0,0.00010958,2]
[352725911,1739279439477,-247.53799712,0.00010958,2]
[352725913,1739279439487,-500.0,0.00010958,2]
[352725915,1739279439496,-500.0,0.00010958,2]
[352725917,1739279439505,-500.0,0.00010958,2]
[352725919,1739279439514,-500.0,0.00010958,2]
[352725921,1739279439524,-500.0,0.00010958,2]
[352725923,1739279439533,-233.68084631,0.00010958,2]
[352725925,1739279439543,-687.71,0.00010958,2]
[352725927,1739279439552,-511.33172041,0.00010958,2]
[352725929,1739279439561,-500.0,0.00010958,2]
[352725931,1739279439570,-500.0,0.00010958,2]
[352725933,1739279439579,-500.0,0.00010958,2]
[352725935,1739279439588,-500.0,0.00010958,2]
[352725937,1739279439598,-573.50862809,0.00010958,2]
[352725939,1739279439607,-1039.25,0.00010958,2]
[352725941,1739279439616,-500.0,0.00010958,2]
[352725943,1739279439625,-852.28,0.00010958,2]
[352725945,1739279439635,-500.0,0.00010958,2]
[352725947,1739279439644,-500.0,0.00010958,2]
[352725949,1739279439653,-1055.55,0.00010958,2]
[352725951,1739279439662,-639.42,0.00010958,2]
[352725953,1739279439671,-154.70919903,0.00010958,2]
[352725955,1739279439681,-422.39585758,0.00010958,2]
[352725956,1739279439690,-500.0,0.00010958,2]
[352725957,1739279439701,-500.0,0.00010958,2]
[352725958,1739279439710,-500.0,0.00010958,2]
[352725959,1739279439720,-500.71,0.00010958,2]
[352725960,1739279439729,-500.0,0.00010958,2]
[352725961,1739279439739,-500.0,0.00010958,2]
[352725962,1739279439748,-500.0,0.00010958,2]
[352725963,1739279439758,-500.0,0.00010958,2]
[352725964,1739279439768,-500.0,0.00010958,2]
[352725965,1739279439777,-564.6,0.00010958,2]
[352725966,1739279439787,-500.0,0.00010958,2]
[352725967,1739279439796,-500.0,0.00010958,2]
[352725968,1739279439806,-500.0,0.00010958,2]
[352725969,1739279439816,-611.32,0.00010958,2]
[352725970,1739279439825,-500.0,0.00010958,2]
[352725971,1739279439835,-1114.27,0.00010958,2]
[352725972,1739279439845,-500.0,0.00010958,2]
[352725973,1739279439854,-171.45839959,0.00010958,2]
[352725974,1739279439864,-762.61,0.00010958,2]
[352725975,1739279439874,-884.93,0.00010958,2]
[352725976,1739279439884,-500.0,0.00010958,2]
[352725977,1739279439894,-500.0,0.00010958,2]
[352725979,1739279439905,-500.0,0.00010958,2]
[352725980,1739279439914,-500.0,0.00010958,2]
[352725981,1739279439924,-500.0,0.00010958,2]
[352725983,1739279439934,-500.0,0.00010958,2]
[352725984,1739279439945,-696.76,0.00010958,2]
[352725985,1739279439955,-500.0,0.00010958,2]
[352725986,1739279439966,-667.33,0.00010958,2]
[352725987,1739279439976,-500.0,0.00010958,2]
[352725988,1739279439987,-250.95642994,0.00010958,2]
[352725989,1739279439996,-500.0,0.00010958,2]
[352725990,1739279440006,-500.0,0.00010958,2]
[352725991,1739279440015,-500.0,0.00010958,2]
[352725993,1739279440024,-500.0,0.00010958,2]
[352725995,1739279440034,-500.0,0.00010958,2]
[352725997,1739279440044,-500.0,0.00010958,2]
[352725999,1739279440055,-500.0,0.00010958,2]
[352726000,1739279440065,-500.0,0.00010958,2]
[352726001,1739279440077,-500.0,0.00010958,2]
[352726002,1739279440086,-500.0,0.00010958,2]
[352726003,1739279440095,-500.0,0.00010958,2]
[352726004,1739279440105,-675.37,0.00010958,2]
[352726005,1739279440114,-500.0,0.00010958,2]
[352726006,1739279440123,-846.36,0.00010958,2]
[352726007,1739279440133,-500.0,0.00010958,2]
[352726008,1739279440142,-1595.82,0.00010958,2]
[352726009,1739279440151,-500.0,0.00010958,2]
[352726010,1739279440160,-500.0,0.00010958,2]
[352726011,1739279440170,-708.4,0.00010958,2]
[352726012,1739279440179,-500.0,0.00010958,2]
[352726013,1739279440188,-500.0,0.00010958,2]
[352726014,1739279440198,-500.0,0.00010958,2]
[352726015,1739279440209,-500.0,0.00010958,2]
[352726016,1739279440218,-842.32,0.00010958,2]
[352726017,1739279440228,-2296.75,0.00010958,2]
[352726018,1739279440238,-4247.55,0.00010958,2]
[352726019,1739279440247,-500.0,0.00010958,2]
[352726020,1739279440256,-500.0,0.00010958,2]
[352726021,1739279440266,-500.0,0.00010958,2]
[352726022,1739279440275,-905.66,0.00010958,2]
[352726023,1739279440284,-2990.42,0.00010958,2]
[352726024,1739279440293,-500.0,0.00010958,2]
[352726025,1739279440302,-500.0,0.00010958,2]
[352726026,1739279440312,-885.24,0.00010958,2]
[352726027,1739279440322,-171.71346983,0.00010958,2]
[352726028,1739279440331,-1583.44,0.00010958,2]
[352726029,1739279440341,-500.0,0.00010958,2]
[352726030,1739279440351,-1207.48,0.00010958,2]
[352726031,1739279440360,-500.0,0.00010958,2]
[352726032,1739279440370,-500.0,0.00010958,2]
[352726033,1739279440379,-32082.67,0.00010958,2]
[352726034,1739279440388,-500.0,0.00010958,2]
[352726035,1739279440399,-500.0,0.00010958,2]
[352726036,1739279440410,-587.92,0.00010958,2]
[352726037,1739279440420,-500.0,0.00010958,2]
[352726038,1739279440430,-14521.38,0.00010958,2]
[352726039,1739279440440,-500.0,0.00010958,2]
[352726040,1739279440451,-1696.95,0.00010958,2]
[352726041,1739279440461,-1959.29,0.00010958,2]
[352726042,1739279440471,-372.7100384,0.00010958,2]
[352726043,1739279440480,-500.0,0.00010958,2]
[352726044,1739279440490,-1174.61,0.00010958,2]
[352726045,1739279440499,-628.02,0.00010958,2]
[352726046,1739279440509,-1040.42,0.00010958,2]
[352726047,1739279440520,-506.96635767,0.00010958,2]
[352726048,1739279440530,-506.53712503,0.00010958,2]
[352726049,1739279440540,-1643.53,0.00010958,2]
[352726050,1739279440550,-500.0,0.00010958,2]
[352726051,1739279440560,-421.68224977,0.00010958,2]
[352726052,1739279440575,-78.31775023,0.00010958,2]
[352726053,1739279440585,-500.0,0.00010958,2]
[352726054,1739279440595,-8.16719264,0.00010958,2]
[352726055,1739279440607,-491.83280736,0.00010958,2]
[352726056,1739279440616,-500.0,0.00010958,2]
[352726057,1739279440626,-772.0,0.00010958,2]
[352726058,1739279440636,-500.0,0.00010958,2]
[352726059,1739279440647,-500.0,0.00010958,2]
[352726060,1739279440657,-500.0,0.00010958,2]
[352726062,1739279440667,-598.24,0.00010958,2]
[352726065,1739279440677,-638.27,0.00010958,2]
[352726067,1739279440687,-500.0,0.00010958,2]
[352726068,1739279440696,-500.0,0.00010958,2]
[352726071,1739279440706,-500.0,0.00010958,2]
[352726073,1739279440718,-532.81,0.00010958,2]
[352726075,1739279440728,-500.0,0.00010958,2]
[352726077,1739279440737,-2139.88,0.00010958,2]
[352726079,1739279440746,-500.0,0.00010958,2]
[352726081,1739279440756,-500.0,0.00010958,2]
[352726083,1739279440766,-500.0,0.00010958,2]
[352726085,1739279440775,-526.63,0.00010958,2]
[352726087,1739279440784,-500.0,0.00010958,2]
[352726089,1739279440794,-822.36,0.00010958,2]
[352726091,1739279440804,-769.14,0.00010958,2]
[352726093,1739279440813,-500.0,0.00010958,2]
[352726095,1739279440822,-504.17882833,0.00010958,2]
[352726097,1739279440831,-1220.04,0.00010958,2]
[352726098,1739279440841,-2857.7,0.00010958,2]
[352726100,1739279440850,-500.0,0.00010958,2]
[352726102,1739279440860,-500.0,0.00010958,2]
[352726104,1739279440870,-500.0,0.00010958,2]